fUST/lending_fUST_20250529
["ID","MTS","AMOUNT","RATE_DAILY","PERIOD"]
[362852408,1748491842631,-423.31762986,0.000209,2]
[362852410,1748491842640,-160.0,0.000209,2]
[362852412,1748491842650,-229.26895353,0.000209,2]
[362852414,1748491842659,-286.84109615,0.00020934,4]
[362852416,1748491842668,-644.39538793,0.00021,2]
[362852418,1748491842678,-184.31,0.00021068,2]
[362852420,1748491842687,-430.0,0.00021068,2]
[362852422,1748491842698,-1454.21,0.00021068,2]
[362852424,1748491842707,-1869.03,0.00021068,2]
[362852426,1748491842717,-748.5,0.00021089,2]
[362852428,1748491842726,-2337.84,0.00021089,2]
[362852430,1748491842735,-430.0,0.00021089,2]
[362852432,1748491842744,-892.14,0.00021089,2]
[362852434,1748491842757,-874.5,0.00021089,2]
[362852436,1748491842766,-430.0,0.00021089,2]
[362852438,1748491842776,-430.0,0.00021089,2]
[362852440,1748491842785,-430.0,0.00021089,2]
[362852442,1748491842794,-430.0,0.00021089,2]
[362852444,1748491842803,-430.0,0.00021089,2]
[362852446,1748491842812,-430.0,0.00021089,2]
[362852448,1748491842821,-430.0,0.00021089,2]
[362852450,1748491842831,-430.0,0.00021089,2]
[362852452,1748491842840,-430.0,0.00021089,2]
[362852454,1748491842849,-430.0,0.00021089,2]
[362852456,1748491842859,-430.0,0.00021089,2]
[362852458,1748491842872,-469.55,0.00021089,2]
[362852460,1748491842882,-430.0,0.0002109,2]
[362852462,1748491842892,-439.20671052,0.0002109,2]
[362852464,1748491842902,-430.0,0.0002109,2]
[362852466,1748491842912,-430.0,0.0002109,2]
[362852468,1748491842921,-430.0,0.0002109,2]
[362852470,1748491842930,-530.18,0.0002109,2]
[362852473,1748491842940,-276.94,0.0002109,2]
[362852475,1748491842950,-430.0,0.0002109,2]
[362852477,1748491842959,-236.04,0.0002109,2]
[362852479,1748491842969,-430.0,0.0002109,2]
[362852481,1748491842978,-430.0,0.0002109,2]
[362852483,1748491842988,-430.0,0.0002109,2]
[362852486,1748491842997,-430.0,0.0002109,2]
[362852488,1748491843008,-430.0,0.0002109,2]
[362852490,1748491843017,-430.0,0.0002109,2]
[362852492,1748491843027,-762.65,0.0002109,2]
[362852494,1748491843037,-430.0,0.0002109,2]
[362852496,1748491843046,-430.0,0.0002109,2]
[362852498,1748491843055,-509.1219983,0.0002109,2]
[362852500,1748491843064,-430.0,0.0002109,2]
[362852502,1748491843074,-430.0,0.00021091,2]
[362852505,1748491843083,-434.70235338,0.00021091,2]
[362852507,1748491843092,-430.0,0.00021092,2]
[362852508,1748491843101,-430.0,0.00021092,2]
[362852510,1748491843110,-430.0,0.00021092,2]
[362852512,1748491843120,-430.0,0.00021092,2]
[362852516,1748491843129,-791.36,0.00021092,2]
[362852518,1748491843138,-459.33422458,0.00021092,2]
[362852520,1748491843147,-430.0,0.00021092,2]
[362852522,1748491843157,-893.39,0.00021092,2]
[362852525,1748491843166,-430.0,0.00021092,2]
[362852527,1748491843176,-430.0,0.00021092,2]
[362852529,1748491843185,-430.0,0.00021092,2]
[362852530,1748491843194,-1466.94,0.00021092,2]
[362852534,1748491843203,-430.0,0.00021092,2]
[362852538,1748491843213,-430.0,0.00021093,2]
[362852542,1748491843222,-430.0,0.00021093,2]
[362852545,1748491843231,-369.53613733,0.00021093,2]
[362852548,1748491843241,-166.42314775,0.00021093,2]
[362852550,1748491843252,-286.84109615,0.00021107,4]
[362852553,1748491843261,-420.0,0.00021147,2]
[362852556,1748491843270,-700.0,0.00021164,2]
[362852559,1748491843279,-500.0,0.00021233,2]
[362852560,1748491843288,-500.0,0.00021233,2]
[362852562,1748491843298,-500.0,0.00021233,2]
[362852564,1748491843307,-501.80213921,0.00021233,2]
[362852566,1748491843316,-286.84109615,0.00021279,5]
[362852569,1748491843325,-430.0,0.00021342,2]
[362852571,1748491843334,-1454.21,0.00021342,2]
[362852573,1748491843344,-1869.03,0.00021342,2]
[362852575,1748491843353,-362.96,0.00021357,3]
[362852577,1748491843362,-748.5,0.00021363,2]
[362852579,1748491843372,-2337.84,0.00021363,2]
[362852581,1748491843381,-430.0,0.00021363,2]
[362852583,1748491843390,-892.14,0.00021363,2]
[362852585,1748491843399,-874.5,0.00021363,2]
[362852587,1748491843408,-430.0,0.00021363,2]
[362852589,1748491843417,-430.0,0.00021363,2]
[362852591,1748491843426,-430.0,0.00021363,2]
[362852593,1748491843435,-430.0,0.00021363,2]
[362852595,1748491843445,-430.0,0.00021363,2]
[362852597,1748491843454,-430.0,0.00021363,2]
[362852599,1748491843463,-430.0,0.00021363,2]
[362852601,1748491843472,-430.0,0.00021363,2]
[362852603,1748491843482,-430.0,0.00021363,2]
[362852605,1748491843491,-430.0,0.00021363,2]
[362852607,1748491843502,-430.0,0.00021363,2]
[362852609,1748491843512,-321.57248144,0.00021364,2]
[362852611,1748491843521,-430.0,0.00021364,2]
[362852613,1748491843531,-430.0,0.00021364,2]
[362852615,1748491843540,-470.36,0.00021364,2]
[362852617,1748491843549,-421.91049449,0.00021364,2]
[362852619,1748491843558,-430.0,0.00021364,2]
[362852621,1748491843567,-430.0,0.00021364,2]
[362852623,1748491843577,-430.0,0.00021364,2]
[362852626,1748491843586,-430.0,0.00021364,2]
[362852629,1748491843595,-762.65,0.00021364,2]
[362852631,1748491843604,-430.0,0.00021364,2]
[362852633,1748491843613,-430.0,0.00021364,2]
[362852634,1748491843622,-430.0,0.00021364,2]
[362852636,1748491843631,-430.0,0.00021365,2]
[362852638,1748491843641,-430.0,0.00021366,2]
[362852640,1748491843650,-430.0,0.00021366,2]
[362852643,1748491843660,-430.0,0.00021366,2]
[362852644,1748491843669,-791.36,0.00021366,2]
[362852647,1748491843678,-430.0,0.00021366,2]
[362852649,1748491843688,-893.39,0.00021366,2]
[362852650,1748491843697,-430.0,0.00021366,2]
[362852653,1748491843707,-430.0,0.00021366,2]
[362852654,1748491843716,-430.0,0.00021366,2]
[362852656,1748491843726,-1466.94,0.00021366,2]
[362852657,1748491843734,-430.0,0.00021366,2]
[362852658,1748491843743,-542.38,0.00021367,2]
[362852659,1748491843755,-521.11051851,0.00021367,2]
[362852660,1748491843764,-286.84109615,0.00021452,5]
[362852661,1748491843773,-500.0,0.00021511,2]
[362852662,1748491843783,-165.5076159,0.00021511,2]
[362852663,1748491843791,-628.37199564,0.00021538,2]
[362852664,1748491843800,-430.0,0.00021616,2]
[362852665,1748491843809,-1454.21,0.00021616,2]
[362852666,1748491843818,-1793.31606844,0.00021616,2]
[362852691,1748491844127,-430.0,0.00019972,2]
[362852693,1748491844137,-430.0,0.00019972,2]
[362852695,1748491844147,-189.67,0.00020246,2]
[362852697,1748491844156,-75.71393156,0.00021616,2]
[362852699,1748491844166,-286.84109615,0.00021624,5]
[362852701,1748491844175,-545.41310008,0.00021637,2]
[362852703,1748491844184,-892.14,0.00021637,2]
[362852705,1748491844194,-874.5,0.00021637,2]
[362852707,1748491844203,-430.0,0.00021637,2]
[362852709,1748491844213,-430.0,0.00021637,2]
[362852711,1748491844222,-430.0,0.00021637,2]
[362852713,1748491844231,-430.0,0.00021637,2]
[362852715,1748491844240,-430.0,0.00021637,2]
[362852717,1748491844250,-430.0,0.00021637,2]
[362852719,1748491844260,-430.0,0.00021637,2]
[362852721,1748491844270,-430.0,0.00021637,2]
[362852723,1748491844280,-430.0,0.00021637,2]
[362852725,1748491844289,-430.0,0.00021637,2]
[362852727,1748491844299,-484.51901486,0.00021638,2]
[362852729,1748491844308,-430.0,0.00021638,2]
[362852731,1748491844317,-430.0,0.00021638,2]
[362852733,1748491844326,-430.0,0.00021638,2]
[362852735,1748491844335,-762.65,0.00021638,2]
[362852737,1748491844344,-430.0,0.00021638,2]
[362852739,1748491844353,-430.0,0.00021638,2]
[362852750,1748491844362,-430.0,0.00021639,2]
[362852752,1748491844462,-430.0,0.0002164,2]
[362852754,1748491844472,-430.0,0.0002164,2]
[362852756,1748491844481,-430.0,0.0002164,2]
[362852758,1748491844491,-791.36,0.0002164,2]
[362852760,1748491844504,-430.0,0.0002164,2]
[362852762,1748491844513,-893.39,0.0002164,2]
[362852764,1748491844523,-430.0,0.0002164,2]
[362852766,1748491844532,-430.0,0.0002164,2]
[362852769,1748491844542,-430.0,0.0002164,2]
[362852771,1748491844551,-1466.94,0.0002164,2]
[362852773,1748491844560,-430.0,0.0002164,2]
[362852775,1748491844571,-1000.0,0.00021781,2]
[362852777,1748491844581,-1000.0,0.00021781,2]
[362852778,1748491844590,-501.11265055,0.00021781,2]
[362852780,1748491844599,-286.84109615,0.00021797,6]
[362852782,1748491844608,-430.0,0.0002189,2]
[362852784,1748491844618,-1454.21,0.0002189,2]
[362852786,1748491844628,-1869.03,0.0002189,2]
[362852788,1748491844638,-3000.0,0.000219,2]
[362852790,1748491844647,-3000.0,0.0002191,2]
[362852792,1748491844657,-892.14,0.00021911,2]
[362852794,1748491844667,-874.5,0.00021911,2]
[362852796,1748491844676,-430.0,0.00021911,2]
[362852798,1748491844686,-430.0,0.00021911,2]
[362852800,1748491844695,-156.66319975,0.00021911,2]
[362852802,1748491844704,-430.0,0.00021911,2]
[362852804,1748491844714,-430.0,0.00021911,2]
[362852806,1748491844723,-430.0,0.00021911,2]
[362852807,1748491844733,-430.0,0.00021912,2]
[362852810,1748491844743,-430.0,0.00021912,2]
[362852811,1748491844754,-762.65,0.00021912,2]
[362852813,1748491844763,-430.0,0.00021912,2]
[362852816,1748491844774,-430.0,0.00021913,2]
[362852817,1748491844783,-430.0,0.00021914,2]
[362852820,1748491844793,-430.0,0.00021914,2]
[362852821,1748491844802,-430.0,0.00021914,2]
[362852824,1748491844811,-791.36,0.00021914,2]
[362852826,1748491844822,-430.0,0.00021914,2]
[362852828,1748491844831,-893.39,0.00021914,2]
[362852829,1748491844840,-430.0,0.00021914,2]
[362852831,1748491844850,-430.0,0.00021914,2]
[362852834,1748491844860,-430.0,0.00021914,2]
[362852835,1748491844873,-1466.94,0.00021914,2]
[362852837,1748491844883,-430.0,0.00021914,2]
[362852839,1748491844892,-500.0,0.00021917,2]
[362852841,1748491844901,-500.0,0.00021917,2]
[362852843,1748491844911,-402.66404903,0.00021917,2]
[362852845,1748491844919,-3000.0,0.0002192,2]
[362852847,1748491844928,-3000.0,0.0002193,2]
[362852849,1748491844938,-3000.0,0.0002194,2]
[362852851,1748491844949,-3000.0,0.0002195,2]
[362852853,1748491844959,-3000.0,0.0002196,2]
[362852855,1748491844968,-286.84109615,0.00021969,6]
[362852857,1748491844977,-3000.0,0.0002197,2]
[362852859,1748491844986,-3000.0,0.0002198,2]
[362852861,1748491844995,-3000.0,0.0002199,2]
[362852863,1748491845006,-3000.0,0.00022,2]
[362852865,1748491845016,-1326.78,0.00022,2]
[362852867,1748491845025,-2458.93,0.00022,7]
[362852869,1748491845035,-100242.02,0.00022,7]
[362852871,1748491845045,-6099.06,0.00022,2]
[362852873,1748491845054,-3000.0,0.0002201,2]
[362852875,1748491845063,-500.0,0.00022011,2]
[362852877,1748491845073,-544.94703601,0.00022011,2]
[362852879,1748491845082,-3000.0,0.0002202,2]
[362852881,1748491845092,-3000.0,0.0002203,2]
[362852883,1748491845101,-3000.0,0.0002204,2]
[362852885,1748491845111,-3000.0,0.0002205,2]
[362852887,1748491845120,-3000.0,0.0002206,2]
[362852889,1748491845130,-3000.0,0.0002207,2]
[362852891,1748491845139,-500.0,0.00022073,2]
[362852893,1748491845149,-3000.0,0.0002208,2]
[362852895,1748491845158,-3000.0,0.0002209,2]
[362852897,1748491845167,-3000.0,0.000221,2]
[362852899,1748491845177,-37788.54,0.000221,2]
[362852901,1748491845186,-3000.0,0.0002211,2]
[362852903,1748491845195,-3000.0,0.0002212,2]
[362852905,1748491845205,-3000.0,0.0002213,2]
[362852907,1748491845214,-3000.0,0.0002214,2]
[362852909,1748491845224,-286.84109615,0.00022141,6]
[362852911,1748491845234,-3000.0,0.0002215,2]
[362852913,1748491845243,-3000.0,0.0002216,2]
[362852915,1748491845255,-430.0,0.00022164,2]
[362852917,1748491845265,-1454.21,0.00022164,2]
[362852919,1748491845274,-1869.03,0.00022164,2]
[362852921,1748491845284,-3000.0,0.0002217,2]
[362852923,1748491845293,-3000.0,0.0002218,2]
[362852925,1748491845302,-892.14,0.00022185,2]
[362852927,1748491845312,-874.5,0.00022185,2]
[362852929,1748491845322,-430.0,0.00022185,2]
[362852931,1748491845331,-430.0,0.00022185,2]
[362852933,1748491845340,-227.51169044,0.00022185,2]
[362852935,1748491845350,-430.0,0.00022185,2]
[362852937,1748491845359,-430.0,0.00022185,2]
[362852939,1748491845369,-430.0,0.00022186,2]
[362852941,1748491845379,-762.65,0.00022186,2]
[362852943,1748491845388,-430.0,0.00022186,2]
[362852945,1748491845398,-430.0,0.00022187,2]
[362852947,1748491845407,-448.32827869,0.00022188,2]
[362852949,1748491845416,-430.0,0.00022188,2]
[362852951,1748491845426,-791.36,0.00022188,2]
[362852953,1748491845435,-430.0,0.00022188,2]
[362852955,1748491845445,-893.39,0.00022188,2]
[362852957,1748491845454,-430.0,0.00022188,2]
[362852959,1748491845463,-430.0,0.00022188,2]
[362852961,1748491845472,-430.0,0.00022188,2]
[362852963,1748491845482,-1466.94,0.00022188,2]
[362852965,1748491845492,-430.0,0.00022188,2]
[362852967,1748491845502,-208.48437523,0.00022189,2]
[362852969,1748491845512,-3000.0,0.0002219,2]
[362852971,1748491845521,-3000.0,0.000222,2]
[362852973,1748491845530,-4670.14,0.000222,7]
[362852975,1748491845540,-3000.0,0.0002221,2]
[362852977,1748491845550,-3000.0,0.0002222,2]
[362852979,1748491845559,-3000.0,0.0002223,2]
[362852981,1748491845569,-3000.0,0.0002224,2]
[362852984,1748491845579,-3000.0,0.0002225,2]
[362852986,1748491845589,-3000.0,0.0002226,2]
[362852987,1748491845599,-700.0,0.0002226,2]
[362852989,1748491845608,-3000.0,0.0002227,2]
[362852992,1748491845617,-3000.0,0.0002228,2]
[362852993,1748491845628,-3000.0,0.0002229,2]
[362852995,1748491845637,-3000.0,0.000223,2]
[362852997,1748491845647,-3000.0,0.0002231,2]
[362852999,1748491845657,-286.84109615,0.00022314,7]
[362853001,1748491845667,-3000.0,0.0002232,2]
[362853003,1748491845676,-1500.0,0.00022329,2]
[362853005,1748491845686,-3000.0,0.0002233,2]
[362853007,1748491845695,-4143.125952,0.0002234,2]
[362853009,1748491845705,-430.0,0.00022438,2]
[362853011,1748491845714,-1454.21,0.00022438,2]
[362853013,1748491845724,-1869.03,0.00022438,2]
[362853015,1748491845733,-892.14,0.00022459,2]
[362853017,1748491845743,-874.5,0.00022459,2]
[362853019,1748491845754,-430.0,0.00022459,2]
[362853021,1748491845764,-430.0,0.00022459,2]
[362853023,1748491845773,-430.0,0.00022459,2]
[362853025,1748491845783,-418.35,0.00022459,2]
[362853027,1748491845792,-430.0,0.0002246,2]
[362853029,1748491845801,-762.65,0.0002246,2]
[362853031,1748491845810,-430.0,0.0002246,2]
[362853033,1748491845820,-430.0,0.00022461,2]
[362853035,1748491845829,-430.0,0.00022462,2]
[362853037,1748491845839,-791.36,0.00022462,2]
[362853039,1748491845848,-430.0,0.00022462,2]
[362853041,1748491845858,-893.39,0.00022462,2]
[362853043,1748491845870,-430.0,0.00022462,2]
[362853045,1748491845879,-430.0,0.00022462,2]
[362853047,1748491845889,-430.0,0.00022462,2]
[362853049,1748491845899,-1466.94,0.00022462,2]
[362853051,1748491845909,-534.16813463,0.00022462,2]
[362853053,1748491845919,-500.0,0.00022465,2]
[362853055,1748491845928,-502.32818901,0.00022473,2]
[362853057,1748491845939,-286.84109615,0.00022486,7]
[362853059,1748491845949,-500.0,0.00022542,2]
[362853061,1748491845959,-500.0,0.00022542,2]
[362853063,1748491845968,-500.0,0.00022542,2]
[362853065,1748491845977,-1000.0,0.00022559,2]
[362853067,1748491845986,-214.825144,0.00022603,2]
[362853069,1748491845995,-1000.0,0.00022621,2]
[362853071,1748491846008,-286.84109615,0.00022659,7]
[362853073,1748491846017,-590.46210624,0.000227,2]
[362853075,1748491846027,-430.0,0.00022712,2]
[362853077,1748491846036,-1454.21,0.00022712,2]
[362853079,1748491846045,-1869.03,0.00022712,2]
[362853081,1748491846053,-892.14,0.00022733,2]
[362853083,1748491846064,-874.5,0.00022733,2]
[362853085,1748491846073,-430.0,0.00022733,2]
[362853087,1748491846083,-430.0,0.00022733,2]
[362853089,1748491846092,-430.0,0.00022734,2]
[362853091,1748491846101,-762.65,0.00022734,2]
[362853093,1748491846110,-430.0,0.00022734,2]
[362853095,1748491846120,-430.0,0.00022735,2]
[362853097,1748491846128,-186.93473933,0.00022736,2]
[362853099,1748491846138,-791.36,0.00022736,2]
[362853101,1748491846148,-430.0,0.00022736,2]
[362853103,1748491846157,-893.39,0.00022736,2]
[362853105,1748491846166,-430.0,0.00022736,2]
[362853107,1748491846175,-430.0,0.00022736,2]
[362853109,1748491846185,-430.0,0.00022736,2]
[362853111,1748491846195,-1466.94,0.00022736,2]
[362853113,1748491846203,-286.84109615,0.00022831,8]
[362853115,1748491846212,-961.0,0.00022957,2]
[362853117,1748491846221,-708.0,0.00022957,2]
[362853119,1748491846230,-2230.0,0.00022957,2]
[362853121,1748491846239,-405.0,0.00022957,2]
[362853122,1748491846248,-502.70993449,0.00022973,2]
[362853124,1748491846261,-500.0,0.00022973,2]
[362853127,1748491846272,-500.0,0.00022973,2]
[362853128,1748491846281,-503.15297277,0.00022973,2]
[362853130,1748491846291,-500.0,0.00022973,2]
[362853133,1748491846301,-500.0,0.00022973,2]
[362853135,1748491846310,-500.0,0.00022973,2]
[362853136,1748491846320,-600.0,0.00022973,2]
[362853138,1748491846329,-500.0,0.00022973,2]
[362853140,1748491846339,-500.0,0.00022973,2]
[362853142,1748491846348,-501.64564373,0.00022973,2]
[362853145,1748491846358,-500.0,0.00022973,2]
[362853146,1748491846367,-500.0,0.00022973,2]
[362853149,1748491846377,-500.0,0.00022973,2]
[362853151,1748491846387,-430.0,0.00022986,2]
[362853153,1748491846396,-1454.21,0.00022986,2]
[362853155,1748491846406,-1869.03,0.00022986,2]
[362853157,1748491846415,-500.0,0.00023,30]
[362853158,1748491846424,-500.0,0.00023,30]
[362853161,1748491846434,-100242.02,0.00023,7]
[362853162,1748491846443,-286.84109615,0.00023003,8]
[362853164,1748491846452,-892.14,0.00023007,2]
[362853167,1748491846462,-874.5,0.00023007,2]
[362853168,1748491846471,-152.648992,0.00023007,7]
[362853171,1748491846481,-151.0,0.00023007,7]
[362853172,1748491846491,-430.0,0.00023007,2]
[362853174,1748491846503,-151.0,0.00023007,7]
[362853176,1748491846512,-430.0,0.00023007,2]
[362853178,1748491846522,-151.0,0.00023007,7]
[362853180,1748491846531,-151.0,0.00023007,7]
[362853182,1748491846540,-153.449984,0.00023007,7]
[362853184,1748491846549,-151.0,0.00023007,7]
[362853186,1748491846558,-151.0,0.00023007,7]
[362853198,1748491846658,-522.560974,0.00023007,7]
[362853200,1748491846668,-271.360748,0.00023007,7]
[362853202,1748491846678,-522.560974,0.00023007,7]
[362853204,1748491846691,-430.0,0.00023008,2]
[362853207,1748491846701,-762.65,0.00023008,2]
[362853209,1748491846711,-325.09,0.00023008,2]
[362853210,1748491846720,-791.36,0.0002301,2]
[362853212,1748491846729,-430.0,0.0002301,2]
[362853214,1748491846738,-893.39,0.0002301,2]
[362853216,1748491846747,-430.0,0.0002301,2]
[362853218,1748491846760,-430.0,0.0002301,2]
[362853221,1748491846770,-430.0,0.0002301,2]
[362853223,1748491846780,-1466.94,0.0002301,2]
[362853225,1748491846789,-500.0,0.00023013,2]
[362853227,1748491846799,-1000.0,0.0002309,2]
[362853229,1748491846807,-1000.0,0.0002309,2]
[362853231,1748491846817,-1000.0,0.0002309,2]
[362853233,1748491846826,-37788.54,0.000231,2]
[362853235,1748491846835,-2458.93,0.000231,7]
[362853237,1748491846844,-152.089154,0.000231,7]
[362853238,1748491846853,-151.0,0.000231,7]
[362853240,1748491846863,-151.0,0.00023168,7]
[362853242,1748491846876,-153.54264,0.00023168,7]
[362853244,1748491846885,-151.0,0.00023168,7]
[362853246,1748491846894,-151.0,0.00023168,7]
[362853248,1748491846904,-151.0,0.00023168,7]
[362853250,1748491846914,-151.405863,0.00023168,7]
[362853252,1748491846923,-165.711892,0.00023168,7]
[362853254,1748491846932,-165.711892,0.00023168,7]
[362853256,1748491846943,-750.43346375,0.00023168,2]
[362853258,1748491846953,-286.84109615,0.00023176,8]
[362853260,1748491846962,-6099.06,0.000232,2]
[362853262,1748491846971,-430.0,0.0002326,2]
[362853264,1748491846980,-1454.21,0.0002326,2]
[362853266,1748491846989,-1869.03,0.0002326,2]
[362853268,1748491846999,-892.14,0.00023281,2]
[362853270,1748491847011,-874.5,0.00023281,2]
[362853272,1748491847021,-430.0,0.00023281,2]
[362853274,1748491847030,-366.34,0.00023281,2]
[362853276,1748491847040,-353.37,0.00023282,2]
[362853278,1748491847049,-762.65,0.00023282,2]
[362853280,1748491847058,-791.36,0.00023284,2]
[362853281,1748491847067,-430.0,0.00023284,2]
[362853282,1748491847077,-893.39,0.00023284,2]
[362853283,1748491847086,-430.0,0.00023284,2]
[362853284,1748491847095,-430.0,0.00023284,2]
[362853285,1748491847104,-430.0,0.00023284,2]
[362853286,1748491847114,-1466.94,0.00023284,2]
[362853287,1748491847124,-286.84109615,0.00023348,9]
[362853288,1748491847133,-700.0,0.00023356,2]
[362853289,1748491847143,-315.1868876,0.0002337,2]
[362853290,1748491847152,-153.0,0.0002337,2]
[362853291,1748491847161,-176.3696131,0.0002337,2]
[362853292,1748491847170,-572.078714,0.0002337,2]
[362853293,1748491847180,-153.0,0.0002337,2]
[362853294,1748491847189,-316.736422,0.0002337,2]
[362853295,1748491847199,-4670.14,0.000235,7]
[362853296,1748491847210,-501.06523105,0.00023521,2]
[362853298,1748491847218,-1036.63508491,0.00023521,2]
[362853300,1748491847227,-1000.0,0.00023521,2]
[362853302,1748491847237,-1004.32502589,0.00023521,2]
[362853304,1748491847246,-1001.13035194,0.00023521,2]
[362853306,1748491847257,-1200.0,0.00023521,2]
[362853308,1748491847267,-1000.0,0.00023521,2]
[362853310,1748491847276,-1000.0,0.00023521,2]
[362853312,1748491847286,-1000.0,0.00023521,2]
[362853314,1748491847295,-1000.0,0.00023521,2]
[362853316,1748491847304,-286.84109615,0.00023521,9]
[362853318,1748491847314,-430.0,0.00023533,2]
[362853320,1748491847323,-1454.21,0.00023533,2]
[362853322,1748491847332,-1869.03,0.00023533,2]
[362853324,1748491847341,-892.14,0.00023555,2]
[362853326,1748491847350,-874.5,0.00023555,2]
[362853328,1748491847359,-430.0,0.00023555,2]
[362853330,1748491847368,-762.65,0.00023556,2]
[362853332,1748491847378,-791.36,0.00023558,2]
[362853334,1748491847387,-430.0,0.00023558,2]
[362853336,1748491847396,-893.39,0.00023558,2]
[362853338,1748491847405,-430.0,0.00023558,2]
[362853340,1748491847414,-430.0,0.00023558,2]
[362853342,1748491847423,-430.0,0.00023558,2]
[362853344,1748491847433,-1466.94,0.00023558,2]
[362853346,1748491847441,-207.4,0.00023574,2]
[362853348,1748491847450,-162.73683903,0.00023638,2]
[362853350,1748491847459,-1000.0,0.00023638,2]
[362853352,1748491847469,-1000.0,0.00023638,2]
[362853354,1748491847478,-1673.62,0.0002369,2]
[362853356,1748491847486,-286.84109615,0.00023693,9]
[362853358,1748491847496,-430.0,0.00023807,2]
[362853360,1748491847507,-1454.21,0.00023807,2]
[362853362,1748491847517,-1869.03,0.00023807,2]
[362853364,1748491847527,-892.14,0.00023829,2]
[362853366,1748491847537,-874.5,0.00023829,2]
[362853368,1748491847546,-430.0,0.00023829,2]
[362853370,1748491847555,-762.65,0.0002383,2]
[362853372,1748491847566,-791.36,0.00023832,2]
[362853374,1748491847575,-395.86775219,0.00023832,2]
[362853376,1748491847583,-893.39,0.00023832,2]
[362853378,1748491847592,-430.0,0.00023832,2]
[362853380,1748491847602,-399.8639485,0.00023832,2]
[362853382,1748491847611,-430.0,0.00023832,2]
[362853384,1748491847620,-1466.94,0.00023832,2]
[362853386,1748491847630,-286.84109615,0.00023866,10]
[362853388,1748491847640,-427.0347953,0.00023918,2]
[362853390,1748491847649,-160.0,0.00024,7]
[362853391,1748491847658,-286.84109615,0.00024038,10]
[362853394,1748491847668,-1001.52577846,0.00024068,2]
[362853395,1748491847677,-1800.0,0.00024068,2]
[362853398,1748491847687,-502.95117659,0.00024068,2]
[362853399,1748491847696,-1500.0,0.00024068,2]
[362853401,1748491847705,-504.31147132,0.00024068,2]
[362853404,1748491847716,-1001.57284855,0.00024068,2]
[362853405,1748491847725,-317.54495864,0.00024081,2]
[362853408,1748491847734,-1454.21,0.00024081,2]
[362853409,1748491847743,-1869.03,0.00024081,2]
[362853412,1748491847754,-2458.93,0.000241,7]
[362853414,1748491847764,-8588.28684559,0.000241,7]
[362853433,1748491847948,-430.0,0.00020246,2]
[362853436,1748491847959,-430.0,0.0002052,2]
[362853438,1748491847968,-430.0,0.00020794,2]
[362853439,1748491847978,-430.0,0.00021068,2]
[362853441,1748491847987,-430.0,0.00021342,2]
[362853443,1748491847996,-345.56342047,0.00021616,2]
[362854659,1748493032881,-181.219091,0.00018965,2]
[362854660,1748493032891,-161.118858,0.00019178,2]
[362854661,1748493032901,-430.0,0.00019898,2]
[362854662,1748493032911,-300.0,0.00019898,2]
[362854663,1748493032920,-464.98331165,0.00019898,2]